[Event "Betsys MČR v online bleskovém šachu 2021"]
[Site "Chess.com"]
[Date "2021.04.17"]
[Round "10"]
[White "Tlaskin"]
[Black "Tassa15"]
[Result "1-0"]
[WhiteElo "1339"]
[BlackElo "866"]
[TimeControl "180+1"]
[EndTime "10:41:45 PDT"]
[Termination "Uživatel Tlaskin zvítězil na čas"]

1. e4 {[%clk 0:03:00.9]} 1... d5 {[%clk 0:02:59.2]} 2. exd5 {[%clk 0:03:00.3]}
2... Qxd5 {[%clk 0:02:59]} 3. Nc3 {[%clk 0:03:00]} 3... Qd6 {[%clk 0:02:58.9]}
4. d4 {[%clk 0:02:58.7]} 4... c6 {[%clk 0:02:59]} 5. Nf3 {[%clk 0:02:56.7]} 5...
Bg4 {[%clk 0:02:58.6]} 6. Be2 {[%clk 0:02:55.7]} 6... Nf6 {[%clk 0:02:58.4]} 7.
h3 {[%clk 0:02:54.2]} 7... Bh5 {[%clk 0:02:57.5]} 8. g4 {[%clk 0:02:53]} 8...
Bg6 {[%clk 0:02:56.7]} 9. Ne5 {[%clk 0:02:52.7]} 9... Nbd7 {[%clk 0:02:46.5]}
10. Nxg6 {[%clk 0:02:50.4]} 10... hxg6 {[%clk 0:02:45.9]} 11. Be3 {[%clk
0:02:46.5]} 11... e6 {[%clk 0:02:45]} 12. Qd2 {[%clk 0:02:36.5]} 12... Qc7
{[%clk 0:02:44.1]} 13. O-O-O {[%clk 0:02:31.9]} 13... O-O-O {[%clk 0:02:42.6]}
14. Bg5 {[%clk 0:02:27.5]} 14... a6 {[%clk 0:02:40.8]} 15. d5 {[%clk 0:02:18.6]}
15... exd5 {[%clk 0:02:37]} 16. Nxd5 {[%clk 0:02:16.4]} 16... cxd5 {[%clk
0:02:24.2]} 17. Bf3 {[%clk 0:02:04.1]} 17... Nb6 {[%clk 0:01:49.8]} 18. Rhe1
{[%clk 0:02:00.7]} 18... Bd6 {[%clk 0:01:41.4]} 19. Re3 {[%clk 0:01:48.2]} 19...
Rhe8 {[%clk 0:01:40]} 20. Rc3 {[%clk 0:01:45]} 20... Nc4 {[%clk 0:01:26.7]} 21.
Qd4 {[%clk 0:01:30.1]} 21... Kb8 {[%clk 0:01:20.1]} 22. b3 {[%clk 0:01:27.2]}
22... Bc5 {[%clk 0:01:07.5]} 23. Qd3 {[%clk 0:01:00.4]} 23... Ne5 {[%clk
0:00:59.9]} 24. Qd2 {[%clk 0:00:49.9]} 24... d4 {[%clk 0:00:55.3]} 25. Rd3
{[%clk 0:00:27.5]} 25... Nxd3+ {[%clk 0:00:49.4]} 26. cxd3 {[%clk 0:00:23.9]}
26... Bb4+ {[%clk 0:00:44.3]} 27. Qc2 {[%clk 0:00:23.5]} 27... Qxc2+ {[%clk
0:00:42.5]} 28. Kxc2 {[%clk 0:00:23.4]} 28... Rd5 {[%clk 0:00:34.2]} 29. Bf4+
{[%clk 0:00:20.9]} 29... Ka7 {[%clk 0:00:29]} 30. Bxd5 {[%clk 0:00:20.1]} 30...
Nxd5 {[%clk 0:00:28.7]} 31. Be5 {[%clk 0:00:19.1]} 31... Rxe5 {[%clk 0:00:27.3]}
32. Kb2 {[%clk 0:00:18.8]} 32... Re2+ {[%clk 0:00:24.2]} 33. Kc1 {[%clk
0:00:18.4]} 33... Rxf2 {[%clk 0:00:23.9]} 34. Rg1 {[%clk 0:00:17.7]} 34... Rf3
{[%clk 0:00:23.4]} 35. Rd1 {[%clk 0:00:16.7]} 35... Rxh3 {[%clk 0:00:22.6]} 36.
Rf1 {[%clk 0:00:15.7]} 36... f6 {[%clk 0:00:21.3]} 37. g5 {[%clk 0:00:14.6]}
37... Rxd3 {[%clk 0:00:21.2]} 38. gxf6 {[%clk 0:00:13.2]} 38... gxf6 {[%clk
0:00:19.9]} 39. Rf2 {[%clk 0:00:11.7]} 39... Be1 {[%clk 0:00:17.4]} 40. Rf1
{[%clk 0:00:11.3]} 40... Bg3 {[%clk 0:00:16.7]} 41. Rg1 {[%clk 0:00:10.9]} 41...
Nc3 {[%clk 0:00:15.6]} 42. Rf1 {[%clk 0:00:09.5]} 42... Nxa2+ {[%clk 0:00:15.4]}
43. Kb1 {[%clk 0:00:09.1]} 43... Nc3+ {[%clk 0:00:14.8]} 44. Kb2 {[%clk
0:00:08.7]} 44... Bd6 {[%clk 0:00:12.5]} 45. Rxf6 {[%clk 0:00:07.7]} 45... Rd2+
{[%clk 0:00:11.7]} 46. Kc1 {[%clk 0:00:05.7]} 46... Rd1+ {[%clk 0:00:09.3]} 47.
Kc2 {[%clk 0:00:05]} 47... Ba3 {[%clk 0:00:08.6]} 48. Rxg6 {[%clk 0:00:03.5]}
48... Rc1+ {[%clk 0:00:08]} 49. Kd3 {[%clk 0:00:03.3]} 49... Rd1+ {[%clk
0:00:06.4]} 50. Kc4 {[%clk 0:00:03.3]} 50... Bb2 {[%clk 0:00:04.6]} 51. Rg2
{[%clk 0:00:02.5]} 51... Re1 {[%clk 0:00:04]} 52. Rxb2 {[%clk 0:00:02]} 52...
Re8 {[%clk 0:00:02.8]} 53. Rh2 {[%clk 0:00:01.7]} 53... Rc8+ {[%clk 0:00:02.6]}
54. Kd3 {[%clk 0:00:01.6]} 54... Rd8 {[%clk 0:00:02.2]} 55. Rh4 {[%clk
0:00:01.1]} 1-0

[Event "Betsys MČR v online bleskovém šachu 2021"]
[Site "Chess.com"]
[Date "2021.04.17"]
[Round "10"]
[White "MrNikdo"]
[Black "horvi1"]
[Result "0-1"]
[WhiteElo "2054"]
[BlackElo "2238"]
[TimeControl "180+1"]
[EndTime "10:41:53 PDT"]
[Termination "Uživatel horvi1 zvítězil po vzdání soupeře"]

1. e4 {[%clk 0:03:00.9]} 1... e6 {[%clk 0:02:59.4]} 2. d4 {[%clk 0:03:00.3]}
2... d5 {[%clk 0:02:59.7]} 3. Nc3 {[%clk 0:03:00.8]} 3... Bb4 {[%clk 0:02:59.2]}
4. e5 {[%clk 0:02:59.8]} 4... c5 {[%clk 0:02:59.1]} 5. a3 {[%clk 0:03:00.1]}
5... Ba5 {[%clk 0:02:56]} 6. dxc5 {[%clk 0:02:58.9]} 6... Bxc3+ {[%clk
0:02:51.7]} 7. bxc3 {[%clk 0:02:59.1]} 7... Qc7 {[%clk 0:02:52.6]} 8. Qg4 {[%clk
0:02:54.2]} 8... Qxe5+ {[%clk 0:02:51.7]} 9. Ne2 {[%clk 0:02:54.8]} 9... h5
{[%clk 0:02:48.5]} 10. Qd4 {[%clk 0:02:44.8]} 10... Nc6 {[%clk 0:02:44.4]} 11.
Qd3 {[%clk 0:02:09.8]} 11... Nge7 {[%clk 0:02:28.5]} 12. Bf4 {[%clk 0:02:08.9]}
12... Qf6 {[%clk 0:02:26.3]} 13. g3 {[%clk 0:02:05.9]} 13... e5 {[%clk
0:02:18.7]} 14. Bd2 {[%clk 0:01:59.4]} 14... Bf5 {[%clk 0:02:17.2]} 15. Qe3
{[%clk 0:01:57.2]} 15... Bxc2 {[%clk 0:02:03.3]} 16. Bg2 {[%clk 0:01:51.5]}
16... O-O-O {[%clk 0:02:00.2]} 17. O-O {[%clk 0:01:48.9]} 17... Nf5 {[%clk
0:01:44.2]} 18. Qf3 {[%clk 0:01:47.1]} 18... e4 {[%clk 0:01:38.4]} 19. Qf4
{[%clk 0:01:46.2]} 19... g5 {[%clk 0:01:36.4]} 20. Qxg5 {[%clk 0:01:43.1]} 20...
Qxg5 {[%clk 0:01:25]} 21. Bxg5 {[%clk 0:01:44]} 21... Rdg8 {[%clk 0:01:18.2]}
22. Bf4 {[%clk 0:01:41.2]} 22... Bd3 {[%clk 0:01:15.8]} 23. Bh3 {[%clk
0:01:40.2]} 23... Ne7 {[%clk 0:01:07.3]} 24. Nd4 {[%clk 0:01:32.7]} 24... Bxf1
{[%clk 0:01:00.2]} 25. Kxf1 {[%clk 0:01:33.6]} 25... Kd8 {[%clk 0:00:42.5]} 26.
Nxf5 {[%clk 0:01:31.8]} 26... Ng6 {[%clk 0:00:41.3]} 27. Bd6 {[%clk 0:01:27.3]}
27... h4 {[%clk 0:00:40.3]} 28. c6 {[%clk 0:01:19.9]} 28... bxc6 {[%clk
0:00:29.3]} 29. Bg4 {[%clk 0:00:45.8]} 29... hxg3 {[%clk 0:00:27.8]} 30. h3
{[%clk 0:00:46.1]} 30... g2+ {[%clk 0:00:20.2]} 31. Kxg2 {[%clk 0:00:46]} 31...
Nh4+ {[%clk 0:00:17.9]} 32. Kg3 {[%clk 0:00:46.1]} 32... Nxf5+ {[%clk
0:00:16.8]} 33. Kf4 {[%clk 0:00:46.6]} 33... Nxd6 {[%clk 0:00:17.2]} 34. Rb1
{[%clk 0:00:46.3]} 34... Kc7 {[%clk 0:00:15.4]} 35. Ke5 {[%clk 0:00:46.4]} 35...
Rg5+ {[%clk 0:00:13.8]} 36. Kf6 {[%clk 0:00:46.1]} 36... Rg6+ {[%clk 0:00:13]}
37. Ke5 {[%clk 0:00:46.1]} 37... Re8+ {[%clk 0:00:12.5]} 38. Kd4 {[%clk
0:00:46.1]} 38... f5 {[%clk 0:00:12.2]} 39. Bh5 {[%clk 0:00:45.4]} 39... Rge6
{[%clk 0:00:10.2]} 40. Bxe8 {[%clk 0:00:44]} 40... Rxe8 {[%clk 0:00:11.1]} 41.
Rg1 {[%clk 0:00:43.7]} 41... f4 {[%clk 0:00:10.2]} 42. Kc5 {[%clk 0:00:43.3]}
42... Nb7+ {[%clk 0:00:08]} 43. Kd4 {[%clk 0:00:42.8]} 43... e3 {[%clk
0:00:08.2]} 44. Rg7+ {[%clk 0:00:42.4]} 44... Kb6 {[%clk 0:00:08.7]} 45. fxe3
{[%clk 0:00:40.2]} 45... fxe3 {[%clk 0:00:08.8]} 46. Rg1 {[%clk 0:00:40.8]}
46... e2 {[%clk 0:00:09.1]} 47. Re1 {[%clk 0:00:41.4]} 47... Nd6 {[%clk
0:00:09.5]} 48. h4 {[%clk 0:00:41.3]} 48... Nf5+ {[%clk 0:00:09]} 49. Kd3 {[%clk
0:00:41.9]} 49... Ng3 {[%clk 0:00:09.3]} 50. Kd2 {[%clk 0:00:40.2]} 50... Kc5
{[%clk 0:00:09.1]} 51. Rg1 {[%clk 0:00:40]} 51... Ne4+ {[%clk 0:00:08]} 52. Ke1
{[%clk 0:00:39.7]} 52... Nxc3 {[%clk 0:00:08.1]} 53. h5 {[%clk 0:00:40.3]} 53...
d4 {[%clk 0:00:08.5]} 54. h6 {[%clk 0:00:40.6]} 54... d3 {[%clk 0:00:08.9]} 55.
h7 {[%clk 0:00:40]} 55... Rh8 {[%clk 0:00:09]} 56. Rg7 {[%clk 0:00:37.9]} 56...
Kc4 {[%clk 0:00:08.2]} 57. Rg4+ {[%clk 0:00:38.1]} 57... Kb3 {[%clk 0:00:07.7]}
58. Kd2 {[%clk 0:00:38.4]} 58... Re8 {[%clk 0:00:05.7]} 59. Rb4+ {[%clk
0:00:38.6]} 59... Ka2 {[%clk 0:00:05.3]} 60. Kxc3 {[%clk 0:00:36.3]} 60... e1=Q+
{[%clk 0:00:05.7]} 61. Kxd3 {[%clk 0:00:35.2]} 61... Qe2+ {[%clk 0:00:05.6]} 62.
Kd4 {[%clk 0:00:34.9]} 62... Rd8+ {[%clk 0:00:05.2]} 63. Kc5 {[%clk 0:00:35.2]}
63... Qc2+ {[%clk 0:00:04.9]} 64. Rc4 {[%clk 0:00:35]} 64... Qf5+ {[%clk
0:00:04.8]} 65. Kb4 {[%clk 0:00:34.7]} 65... Rb8+ {[%clk 0:00:05]} 66. Kc3
{[%clk 0:00:35]} 66... Qf3+ {[%clk 0:00:05.1]} 67. Kd4 {[%clk 0:00:35.1]} 67...
Rd8+ {[%clk 0:00:05]} 68. Kc5 {[%clk 0:00:35.1]} 68... Qd5+ {[%clk 0:00:05.3]}
69. Kb4 {[%clk 0:00:34.9]} 69... Rb8+ {[%clk 0:00:05.3]} 70. Kc3 {[%clk
0:00:35.6]} 70... Rb3+ {[%clk 0:00:05.5]} 71. Kc2 {[%clk 0:00:36]} 71... Qd3+
{[%clk 0:00:05.8]} 0-1

[Event "Betsys MČR v online bleskovém šachu 2021"]
[Site "Chess.com"]
[Date "2021.04.17"]
[Round "10"]
[White "DenryS"]
[Black "Cimrman"]
[Result "1-0"]
[WhiteElo "2199"]
[BlackElo "2327"]
[TimeControl "180+1"]
[EndTime "10:41:54 PDT"]
[Termination "Uživatel DenryS zvítězil po vzdání soupeře"]

1. d4 {[%clk 0:03:00.9]} 1... Nf6 {[%clk 0:02:59]} 2. Nf3 {[%clk 0:03:01.1]}
2... d5 {[%clk 0:02:57.7]} 3. Bf4 {[%clk 0:03:01.1]} 3... c6 {[%clk 0:02:57.8]}
4. e3 {[%clk 0:03:01.5]} 4... Bg4 {[%clk 0:02:53.5]} 5. c4 {[%clk 0:02:58.9]}
5... Bxf3 {[%clk 0:02:53.7]} 6. gxf3 {[%clk 0:02:57.4]} 6... e6 {[%clk
0:02:53.9]} 7. Qb3 {[%clk 0:02:54]} 7... Qb6 {[%clk 0:02:41.8]} 8. c5 {[%clk
0:02:52.2]} 8... Qxb3 {[%clk 0:02:41.8]} 9. a3 {[%clk 0:02:53.1]} 9... Qa2
{[%clk 0:02:33]} 10. Rxa2 {[%clk 0:02:47.4]} 10... Nbd7 {[%clk 0:02:25.3]} 11.
b4 {[%clk 0:02:42.9]} 11... a6 {[%clk 0:02:20.6]} 12. Bd3 {[%clk 0:02:39.6]}
12... Nh5 {[%clk 0:02:09.6]} 13. Bg3 {[%clk 0:02:33.8]} 13... Nxg3 {[%clk
0:02:04.9]} 14. hxg3 {[%clk 0:02:32.9]} 14... g6 {[%clk 0:02:03.7]} 15. Nd2
{[%clk 0:02:25.5]} 15... Bg7 {[%clk 0:02:02.4]} 16. f4 {[%clk 0:02:25.4]} 16...
Ke7 {[%clk 0:01:47.9]} 17. Nb3 {[%clk 0:02:13.6]} 17... Kd8 {[%clk 0:01:39]} 18.
Kd2 {[%clk 0:02:07.2]} 18... Kc7 {[%clk 0:01:39]} 19. a4 {[%clk 0:02:05.7]}
19... h5 {[%clk 0:01:31.8]} 20. Na5 {[%clk 0:01:56]} 20... Nf6 {[%clk
0:01:04.1]} 21. Rha1 {[%clk 0:01:40.7]} 21... Ne4+ {[%clk 0:00:57.2]} 22. Bxe4
{[%clk 0:01:38.1]} 22... dxe4 {[%clk 0:00:58.1]} 23. b5 {[%clk 0:01:37.2]} 23...
axb5 {[%clk 0:00:57]} 24. axb5 {[%clk 0:01:36.6]} 24... cxb5 {[%clk 0:00:32.7]}
25. Nb3 {[%clk 0:01:23]} 25... Rxa2+ {[%clk 0:00:26.6]} 26. Rxa2 {[%clk
0:01:23.9]} 26... h4 {[%clk 0:00:24.1]} 27. gxh4 {[%clk 0:01:06.2]} 27... Rxh4
{[%clk 0:00:25]} 28. Ke2 {[%clk 0:01:05.7]} 28... Rh1 {[%clk 0:00:24.6]} 29. Nd2
{[%clk 0:01:04.3]} 29... f5 {[%clk 0:00:23.4]} 30. Ra8 {[%clk 0:00:58]} 30...
Rh8 {[%clk 0:00:19.9]} 31. Ra7 {[%clk 0:00:40.8]} 31... Kb8 {[%clk 0:00:19]} 32.
Ra5 {[%clk 0:00:40.1]} 32... Bf6 {[%clk 0:00:10.6]} 33. Rxb5 {[%clk 0:00:37.7]}
33... g5 {[%clk 0:00:10.5]} 34. fxg5 {[%clk 0:00:29.9]} 34... Bxg5 {[%clk
0:00:11.4]} 35. Rb6 {[%clk 0:00:27.8]} 35... Re8 {[%clk 0:00:10.1]} 36. c6
{[%clk 0:00:26.4]} 36... Re7 {[%clk 0:00:09.6]} 37. cxb7 {[%clk 0:00:23.9]}
37... Rxb7 {[%clk 0:00:02.9]} 38. Rxe6 {[%clk 0:00:23.4]} 38... Bd8 {[%clk
0:00:02.5]} 39. Nc4 {[%clk 0:00:19.8]} 39... Rb4 {[%clk 0:00:02.5]} 40. Ne5
{[%clk 0:00:12.4]} 40... Rb2+ {[%clk 0:00:02.3]} 41. Kf1 {[%clk 0:00:11.8]}
41... Ba5 {[%clk 0:00:03.2]} 42. Nc6+ {[%clk 0:00:10.9]} 42... Kc7 {[%clk
0:00:04.1]} 43. Nxa5 {[%clk 0:00:11.3]} 43... Ra2 {[%clk 0:00:04.1]} 44. Nc4
{[%clk 0:00:10.7]} 44... Kd7 {[%clk 0:00:05]} 45. Rf6 {[%clk 0:00:09.1]} 45...
Ra4 {[%clk 0:00:05]} 46. Ne5+ {[%clk 0:00:09]} 46... Ke7 {[%clk 0:00:05.9]} 47.
Rxf5 {[%clk 0:00:09.2]} 47... Ra1+ {[%clk 0:00:06.3]} 48. Kg2 {[%clk 0:00:09]}
48... Ke6 {[%clk 0:00:07.2]} 49. Rf4 {[%clk 0:00:09.2]} 49... Ra2 {[%clk
0:00:07.2]} 50. Rxe4 {[%clk 0:00:09.3]} 50... Rb2 {[%clk 0:00:07.8]} 51. Rf4
{[%clk 0:00:09.6]} 51... Kd5 {[%clk 0:00:08]} 52. Kf3 {[%clk 0:00:09.9]} 52...
Ra2 {[%clk 0:00:07.2]} 53. Ng4 {[%clk 0:00:10.4]} 53... Ke6 {[%clk 0:00:07.3]}
54. Rf5 {[%clk 0:00:10.9]} 54... Ra3 {[%clk 0:00:08.1]} 55. Re5+ {[%clk
0:00:10.8]} 55... Kd7 {[%clk 0:00:07.8]} 56. Ke4 {[%clk 0:00:11]} 56... Kd6
{[%clk 0:00:07.9]} 57. f4 {[%clk 0:00:11.1]} 57... Ra1 {[%clk 0:00:07.1]} 58. f5
{[%clk 0:00:11.5]} 58... Rg1 {[%clk 0:00:07.7]} 59. Nf2 {[%clk 0:00:11.2]} 59...
Rf1 {[%clk 0:00:07.9]} 60. Nd3 {[%clk 0:00:11.9]} 60... Rd1 {[%clk 0:00:07.3]}
61. Nf4 {[%clk 0:00:12]} 61... Rf1 {[%clk 0:00:07.1]} 62. f6 {[%clk 0:00:12.1]}
62... Kd7 {[%clk 0:00:06.8]} 63. f7 {[%clk 0:00:11.7]} 1-0

[Event "Betsys MČR v online bleskovém šachu 2021"]
[Site "Chess.com"]
[Date "2021.04.17"]
[Round "10"]
[White "mysacek1414"]
[Black "Bohous13"]
[Result "0-1"]
[WhiteElo "1901"]
[BlackElo "2221"]
[TimeControl "180+1"]
[EndTime "10:41:54 PDT"]
[Termination "Uživatel Bohous13 zvítězil na čas"]

1. e4 {[%clk 0:03:00.9]} 1... e6 {[%clk 0:02:54.7]} 2. d3 {[%clk 0:03:00.3]}
2... d5 {[%clk 0:02:53.6]} 3. Qe2 {[%clk 0:03:00.7]} 3... dxe4 {[%clk
0:02:52.4]} 4. dxe4 {[%clk 0:03:01.6]} 4... c5 {[%clk 0:02:52.5]} 5. Nf3 {[%clk
0:03:01.4]} 5... Nc6 {[%clk 0:02:52.9]} 6. g3 {[%clk 0:03:01.4]} 6... Nf6 {[%clk
0:02:48.7]} 7. Bg2 {[%clk 0:03:01.3]} 7... Be7 {[%clk 0:02:49]} 8. O-O {[%clk
0:03:01]} 8... O-O {[%clk 0:02:49.1]} 9. Rd1 {[%clk 0:03:01.5]} 9... Qc7 {[%clk
0:02:48.8]} 10. e5 {[%clk 0:02:59]} 10... Nd7 {[%clk 0:02:47.8]} 11. Bf4 {[%clk
0:02:58.3]} 11... a6 {[%clk 0:02:45.9]} 12. h4 {[%clk 0:02:55.9]} 12... b5
{[%clk 0:02:45.2]} 13. Nc3 {[%clk 0:02:50]} 13... Bb7 {[%clk 0:02:40.6]} 14. Ne4
{[%clk 0:02:36.4]} 14... Rad8 {[%clk 0:02:21.5]} 15. Nd6 {[%clk 0:02:15.1]}
15... Ba8 {[%clk 0:02:17.4]} 16. h5 {[%clk 0:02:14.6]} 16... Nb4 {[%clk
0:01:31.1]} 17. c3 {[%clk 0:01:56.6]} 17... Nd5 {[%clk 0:01:29.8]} 18. Bg5
{[%clk 0:01:44.6]} 18... Bxg5 {[%clk 0:01:06.3]} 19. Nxg5 {[%clk 0:01:44.4]}
19... Nxe5 {[%clk 0:00:45.3]} 20. Qxe5 {[%clk 0:01:31.2]} 20... Qxd6 {[%clk
0:00:42.7]} 21. Qxd6 {[%clk 0:01:31.3]} 21... Rxd6 {[%clk 0:00:42.2]} 22. Ne4
{[%clk 0:01:31.9]} 22... Rc6 {[%clk 0:00:39.6]} 23. h6 {[%clk 0:01:31.5]} 23...
Rcc8 {[%clk 0:00:23.9]} 24. hxg7 {[%clk 0:01:25.4]} 24... Kxg7 {[%clk
0:00:23.9]} 25. c4 {[%clk 0:01:23.2]} 25... bxc4 {[%clk 0:00:22.8]} 26. Nd6
{[%clk 0:01:23.5]} 26... Rb8 {[%clk 0:00:20.2]} 27. Nxc4 {[%clk 0:01:23.7]}
27... Nf6 {[%clk 0:00:18.7]} 28. Bxa8 {[%clk 0:01:18.6]} 28... Rxa8 {[%clk
0:00:18.5]} 29. Rd6 {[%clk 0:01:18.2]} 29... Rfd8 {[%clk 0:00:16.6]} 30. Rad1
{[%clk 0:01:17.1]} 30... Nd5 {[%clk 0:00:15.2]} 31. Rc6 {[%clk 0:01:06.5]} 31...
Rdc8 {[%clk 0:00:11.8]} 32. Rd6 {[%clk 0:01:00.4]} 32... a5 {[%clk 0:00:11.1]}
33. b3 {[%clk 0:00:58.2]} 33... a4 {[%clk 0:00:10.7]} 34. R6xd5 {[%clk
0:00:52.1]} 34... exd5 {[%clk 0:00:10.3]} 35. Nb6 {[%clk 0:00:52.7]} 35... axb3
{[%clk 0:00:10.1]} 36. axb3 {[%clk 0:00:53.2]} 36... d4 {[%clk 0:00:09.8]} 37.
Rc1 {[%clk 0:00:50.6]} 37... Rab8 {[%clk 0:00:06.7]} 38. Nxc8 {[%clk 0:00:49.5]}
38... Rxc8 {[%clk 0:00:07]} 39. Kf1 {[%clk 0:00:50.4]} 39... Kf6 {[%clk
0:00:06.6]} 40. Ke2 {[%clk 0:00:50.9]} 40... Ke5 {[%clk 0:00:07]} 41. Kd3 {[%clk
0:00:51.4]} 41... Kd5 {[%clk 0:00:07.6]} 42. Re1 {[%clk 0:00:50.6]} 42... Rb8
{[%clk 0:00:07.4]} 43. Kc2 {[%clk 0:00:46.4]} 43... Ra8 {[%clk 0:00:07.5]} 44.
Kb2 {[%clk 0:00:45.9]} 44... Ra7 {[%clk 0:00:06.1]} 45. f4 {[%clk 0:00:45.8]}
45... Rb7 {[%clk 0:00:05.9]} 46. Re5+ {[%clk 0:00:45.5]} 46... Kd6 {[%clk
0:00:05.8]} 47. Kc2 {[%clk 0:00:45.9]} 47... f6 {[%clk 0:00:05.7]} 48. Rh5
{[%clk 0:00:45.9]} 48... Rc7 {[%clk 0:00:04.9]} 49. Kd3 {[%clk 0:00:45.6]} 49...
Rb7 {[%clk 0:00:04.6]} 50. Kc2 {[%clk 0:00:45.7]} 50... Re7 {[%clk 0:00:03.6]}
51. Rh6 {[%clk 0:00:42.6]} 51... Re2+ {[%clk 0:00:03.6]} 52. Kd1 {[%clk
0:00:42.5]} 52... Re3 {[%clk 0:00:03.5]} 53. Rxf6+ {[%clk 0:00:42.4]} 53... Kd5
{[%clk 0:00:04.1]} 54. Rf5+ {[%clk 0:00:42.3]} 54... Kc6 {[%clk 0:00:03.5]} 55.
Rg5 {[%clk 0:00:20.2]} 55... Rxb3 {[%clk 0:00:03.1]} 56. f5 {[%clk 0:00:20.7]}
56... Kb5 {[%clk 0:00:03.4]} 57. f6 {[%clk 0:00:20.9]} 57... Rf3 {[%clk
0:00:03.9]} 58. Rf5 {[%clk 0:00:13]} 58... Rxf5 {[%clk 0:00:03.8]} 59. f7 {[%clk
0:00:13.9]} 59... Rxf7 {[%clk 0:00:03.9]} 0-1

[Event "Betsys MČR v online bleskovém šachu 2021"]
[Site "Chess.com"]
[Date "2021.04.17"]
[Round "10"]
[White "Saygram"]
[Black "czlolcz"]
[Result "0-1"]
[WhiteElo "2387"]
[BlackElo "2198"]
[TimeControl "180+1"]
[EndTime "10:41:56 PDT"]
[Termination "Uživatel czlolcz zvítězil po vzdání soupeře"]

1. e4 {[%clk 0:03:00.9]} 1... e5 {[%clk 0:02:57]} 2. f4 {[%clk 0:03:00.6]} 2...
exf4 {[%clk 0:02:56.7]} 3. Nf3 {[%clk 0:03:00.9]} 3... Ne7 {[%clk 0:02:57.1]} 4.
d4 {[%clk 0:02:58.9]} 4... Ng6 {[%clk 0:02:55.4]} 5. Bc4 {[%clk 0:02:53.8]} 5...
c6 {[%clk 0:02:54.9]} 6. Nc3 {[%clk 0:02:52.6]} 6... Bb4 {[%clk 0:02:54.2]} 7.
O-O {[%clk 0:02:42.3]} 7... Bxc3 {[%clk 0:02:53.3]} 8. bxc3 {[%clk 0:02:41.8]}
8... d5 {[%clk 0:02:54.2]} 9. Bd3 {[%clk 0:02:39]} 9... O-O {[%clk 0:02:53.2]}
10. e5 {[%clk 0:02:31.2]} 10... Be6 {[%clk 0:02:41.4]} 11. Ne1 {[%clk
0:02:15.2]} 11... Qh4 {[%clk 0:02:34.3]} 12. Qf3 {[%clk 0:02:12.7]} 12... Bg4
{[%clk 0:02:24.3]} 13. Qf2 {[%clk 0:02:07.1]} 13... Qxf2+ {[%clk 0:02:12.9]} 14.
Rxf2 {[%clk 0:02:08]} 14... Nd7 {[%clk 0:02:11.5]} 15. Bxf4 {[%clk 0:01:59.8]}
15... Nxf4 {[%clk 0:02:07.4]} 16. Rxf4 {[%clk 0:02:00.7]} 16... Be6 {[%clk
0:02:06.9]} 17. Nf3 {[%clk 0:02:00]} 17... h6 {[%clk 0:02:04.6]} 18. h4 {[%clk
0:01:50.7]} 18... c5 {[%clk 0:02:01.4]} 19. Bb5 {[%clk 0:01:44.2]} 19... Rac8
{[%clk 0:01:53.4]} 20. Bxd7 {[%clk 0:01:27.5]} 20... Bxd7 {[%clk 0:01:51.8]} 21.
Rb1 {[%clk 0:01:01.6]} 21... b6 {[%clk 0:01:51.2]} 22. Rb3 {[%clk 0:01:01.9]}
22... Ba4 {[%clk 0:01:34.5]} 23. Ra3 {[%clk 0:01:01.4]} 23... b5 {[%clk
0:01:20.2]} 24. dxc5 {[%clk 0:00:59.4]} 24... Rxc5 {[%clk 0:01:19.3]} 25. Nd4
{[%clk 0:00:58.4]} 25... Rfc8 {[%clk 0:01:13.7]} 26. Rf3 {[%clk 0:00:45.3]}
26... a6 {[%clk 0:01:04.5]} 27. Kf2 {[%clk 0:00:44.7]} 27... Re8 {[%clk
0:00:37.9]} 28. Re3 {[%clk 0:00:28.4]} 28... Rc4 {[%clk 0:00:37.3]} 29. g3
{[%clk 0:00:24.5]} 29... g6 {[%clk 0:00:33.2]} 30. Kf3 {[%clk 0:00:22.4]} 30...
Kg7 {[%clk 0:00:27.1]} 31. e6 {[%clk 0:00:22.8]} 31... f5 {[%clk 0:00:24.1]} 32.
Re5 {[%clk 0:00:18.9]} 32... Kf6 {[%clk 0:00:11.6]} 33. Rxd5 {[%clk 0:00:19]}
33... Rec8 {[%clk 0:00:11.6]} 34. Rd6 {[%clk 0:00:19]} 34... Rxc3+ {[%clk
0:00:10.6]} 35. Rxc3 {[%clk 0:00:19]} 35... Rxc3+ {[%clk 0:00:11.4]} 36. Kf2
{[%clk 0:00:16.8]} 36... Rc8 {[%clk 0:00:11.2]} 37. Rxa6 {[%clk 0:00:16.4]}
37... Bxc2 {[%clk 0:00:10.4]} 38. Nxc2 {[%clk 0:00:15.9]} 38... Rxc2+ {[%clk
0:00:10.2]} 39. Ke3 {[%clk 0:00:16.5]} 39... Rc3+ {[%clk 0:00:08.7]} 40. Kd4
{[%clk 0:00:16]} 40... Rxg3 {[%clk 0:00:07.3]} 41. Kc5 {[%clk 0:00:11.4]} 41...
Re3 {[%clk 0:00:04.8]} 42. Kxb5 {[%clk 0:00:11.1]} 42... Rxe6 {[%clk 0:00:04.3]}
43. Ra3 {[%clk 0:00:11.6]} 43... g5 {[%clk 0:00:03.4]} 44. h5 {[%clk 0:00:10.6]}
44... f4 {[%clk 0:00:03.5]} 45. Rf3 {[%clk 0:00:09.2]} 45... Kf5 {[%clk
0:00:03.4]} 46. a4 {[%clk 0:00:08.3]} 46... Re2 {[%clk 0:00:02.8]} 47. a5 {[%clk
0:00:08]} 47... g4 {[%clk 0:00:03]} 48. Rf1 {[%clk 0:00:07.8]} 48... Rb2+ {[%clk
0:00:03.2]} 49. Kc4 {[%clk 0:00:05.7]} 49... Ra2 {[%clk 0:00:03.5]} 50. Kb5
{[%clk 0:00:06]} 50... f3 {[%clk 0:00:03.6]} 51. a6 {[%clk 0:00:05.7]} 51... Kf4
{[%clk 0:00:03.8]} 52. Rb1 {[%clk 0:00:06.1]} 52... g3 {[%clk 0:00:03.9]} 53.
Rb4+ {[%clk 0:00:06.2]} 53... Ke3 {[%clk 0:00:01.7]} 54. Ra4 {[%clk 0:00:07.1]}
54... Rxa4 {[%clk 0:00:01.1]} 55. Kxa4 {[%clk 0:00:08]} 55... f2 {[%clk
0:00:01.7]} 56. a7 {[%clk 0:00:08.9]} 56... f1=Q {[%clk 0:00:02.6]} 57. a8=Q
{[%clk 0:00:09.7]} 57... Qa1+ {[%clk 0:00:03]} 58. Kb5 {[%clk 0:00:09.5]} 58...
Qxa8 {[%clk 0:00:02.3]} 59. Kc5 {[%clk 0:00:10.1]} 59... Qe4 {[%clk 0:00:03.2]}
60. Kd6 {[%clk 0:00:10.7]} 60... Qf5 {[%clk 0:00:04.1]} 61. Ke7 {[%clk
0:00:10.5]} 61... Qxh5 {[%clk 0:00:05]} 62. Kf6 {[%clk 0:00:09.1]} 62... Qg5+
{[%clk 0:00:05.9]} 0-1